[Event "*** Titled Tuesday 3|2 Blitz"]
[Site "Chess.com"]
[Date "2015.03.03"]
[Round "3"]
[White "1stSecond"]
[Black "patzerplay"]
[Result "1-0"]
[WhiteElo "2374"]
[BlackElo "2163"]
[TimeControl "180+2"]
[EndTime "11:33:54 PST"]
[Termination "1stSecond won by resignation"]

1. d4 {[%clk 0:03:00]} 1... Nf6 {[%clk 0:02:58.4]} 2. Nf3 {[%clk 0:03:01.7]}
2... g6 {[%clk 0:02:59]} 3. c4 {[%clk 0:03:03.2]} 3... Bg7 {[%clk 0:02:59.8]} 4.
g3 {[%clk 0:03:05.1]} 4... O-O {[%clk 0:02:58.7]} 5. Bg2 {[%clk 0:03:07]} 5...
d5 {[%clk 0:02:56.3]} 6. cxd5 {[%clk 0:03:07.1]} 6... Nxd5 {[%clk 0:02:58.2]} 7.
O-O {[%clk 0:03:07.5]} 7... Nc6 {[%clk 0:02:49.1]} 8. Nc3 {[%clk 0:03:04.3]}
8... Nb6 {[%clk 0:02:49.4]} 9. e3 {[%clk 0:03:04.7]} 9... Re8 {[%clk 0:02:48.1]}
10. b3 {[%clk 0:03:03.9]} 10... a5 {[%clk 0:02:47]} 11. Bb2 {[%clk 0:03:03.2]}
11... Bd7 {[%clk 0:02:33]} 12. h3 {[%clk 0:03:04]} 12... Nb4 {[%clk 0:02:28.2]}
13. a3 {[%clk 0:03:03.5]} 13... Nc6 {[%clk 0:02:27.6]} 14. Kh2 {[%clk
0:03:03.6]} 14... h6 {[%clk 0:02:24.3]} 15. Qe2 {[%clk 0:03:04.5]} 15... Be6
{[%clk 0:02:23.1]} 16. Qc2 {[%clk 0:03:04.8]} 16... Bf5 {[%clk 0:02:23.4]} 17.
e4 {[%clk 0:03:05.5]} 17... Bd7 {[%clk 0:02:20.6]} 18. d5 {[%clk 0:03:06.6]}
18... Nd4 {[%clk 0:02:20.1]} 19. Nxd4 {[%clk 0:03:07.3]} 19... Bxd4 {[%clk
0:02:22]} 20. Rad1 {[%clk 0:03:08.2]} 20... Bg7 {[%clk 0:02:22.5]} 21. f4 {[%clk
0:03:09]} 21... a4 {[%clk 0:02:20.8]} 22. b4 {[%clk 0:03:09.8]} 22... Nc4 {[%clk
0:02:20.1]} 23. Bc1 {[%clk 0:03:10.6]} 23... b5 {[%clk 0:02:08]} 24. e5 {[%clk
0:03:11]} 24... e6 {[%clk 0:01:54.1]} 25. dxe6 {[%clk 0:03:09.7]} 25... Rxe6
{[%clk 0:01:39.4]} 26. Bxa8 {[%clk 0:03:08.5]} 26... Qxa8 {[%clk 0:01:41.3]} 27.
Rxd7 {[%clk 0:03:09.4]} 27... Qc6 {[%clk 0:01:43.2]} 28. Rd8+ {[%clk 0:03:09.7]}
28... Kh7 {[%clk 0:01:44.2]} 29. Qe4 {[%clk 0:03:11.3]} 29... Qb6 {[%clk
0:01:43.7]} 30. Nd5 {[%clk 0:03:11.8]} 30... Qa7 {[%clk 0:01:43.8]} 31. Ne3
{[%clk 0:03:06.6]} 31... Nd6 {[%clk 0:01:33.3]} 32. Qd5 {[%clk 0:03:01.5]} 32...
c6 {[%clk 0:01:22.4]} 33. Qd3 {[%clk 0:03:01.5]} 33... Ne8 {[%clk 0:01:16.2]}
34. Ng4 {[%clk 0:02:57]} 34... h5 {[%clk 0:01:14.4]} 35. f5 {[%clk 0:02:57.9]}
1-0

[Event "*** Titled Tuesday 3|2 Blitz"]
[Site "Chess.com"]
[Date "2015.03.03"]
[Round "3"]
[White "IMRosen"]
[Black "AungTZ"]
[Result "1-0"]
[WhiteElo "2101"]
[BlackElo "2071"]
[TimeControl "180+2"]
[EndTime "11:35:15 PST"]
[Termination "IMRosen won by resignation"]

1. c4 {[%clk 0:03:00]} 1... e5 {[%clk 0:02:58.3]} 2. Nc3 {[%clk 0:03:00.4]} 2...
Nf6 {[%clk 0:02:58.8]} 3. Nf3 {[%clk 0:03:01.3]} 3... Nc6 {[%clk 0:02:59.1]} 4.
a3 {[%clk 0:03:02.4]} 4... d5 {[%clk 0:03:00]} 5. cxd5 {[%clk 0:03:03.3]} 5...
Nxd5 {[%clk 0:03:01.5]} 6. Qc2 {[%clk 0:03:04.9]} 6... Be6 {[%clk 0:02:59.3]} 7.
e3 {[%clk 0:03:05.7]} 7... Bd6 {[%clk 0:02:58.1]} 8. Nxd5 {[%clk 0:03:05.5]}
8... Bxd5 {[%clk 0:02:58.5]} 9. Bc4 {[%clk 0:03:07.2]} 9... Bxc4 {[%clk
0:02:58.1]} 10. Qxc4 {[%clk 0:03:09.1]} 10... O-O {[%clk 0:02:59]} 11. d3 {[%clk
0:03:08.5]} 11... Kh8 {[%clk 0:02:57.8]} 12. e4 {[%clk 0:03:08.4]} 12... h6
{[%clk 0:02:44.1]} 13. O-O {[%clk 0:03:07.7]} 13... Qd7 {[%clk 0:02:42.6]} 14.
Be3 {[%clk 0:03:08.4]} 14... Rad8 {[%clk 0:02:39]} 15. Rfd1 {[%clk 0:03:05.6]}
15... f5 {[%clk 0:02:32.6]} 16. exf5 {[%clk 0:03:06.2]} 16... Qxf5 {[%clk
0:02:33.1]} 17. Qe4 {[%clk 0:03:03.8]} 17... Qf7 {[%clk 0:02:31.3]} 18. b4
{[%clk 0:03:02.2]} 18... a6 {[%clk 0:02:31.1]} 19. Rac1 {[%clk 0:03:02.9]} 19...
Rde8 {[%clk 0:02:14.9]} 20. Nh4 {[%clk 0:02:54.8]} 20... Re6 {[%clk 0:02:08]}
21. Rc2 {[%clk 0:02:32.2]} 21... Be7 {[%clk 0:02:08.2]} 22. Nf3 {[%clk
0:02:30.7]} 22... Bd6 {[%clk 0:01:57.6]} 23. Rdc1 {[%clk 0:02:26.5]} 23... Rg6
{[%clk 0:01:34.3]} 24. Nh4 {[%clk 0:02:17]} 24... Re6 {[%clk 0:01:33.7]} 25. h3
{[%clk 0:02:18.7]} 25... Nb8 {[%clk 0:01:21.3]} 26. Qxb7 {[%clk 0:02:15.3]}
26... Nd7 {[%clk 0:01:20.2]} 27. Qe4 {[%clk 0:01:44.7]} 27... Be7 {[%clk
0:01:15.1]} 28. Rxc7 {[%clk 0:01:35.1]} 28... Bxh4 {[%clk 0:00:57.9]} 29. Qxh4
{[%clk 0:01:35.3]} 29... Re7 {[%clk 0:00:59.4]} 30. Bc5 {[%clk 0:01:26.7]} 30...
Nxc5 {[%clk 0:00:59.8]} 31. Rxe7 {[%clk 0:01:26.2]} 1-0

[Event "*** Titled Tuesday 3|2 Blitz"]
[Site "Chess.com"]
[Date "2015.03.03"]
[Round "3"]
[White "wonderfultime"]
[Black "AUSSIE_PINOY"]
[Result "1-0"]
[WhiteElo "2540"]
[BlackElo "2219"]
[TimeControl "180+2"]
[EndTime "11:35:18 PST"]
[Termination "wonderfultime won by resignation"]

1. d4 {[%clk 0:02:42]} 1... d5 {[%clk 0:02:58.5]} 2. Nf3 {[%clk 0:02:43.9]} 2...
Bg4 {[%clk 0:02:56.3]} 3. c4 {[%clk 0:02:44.4]} 3... Nc6 {[%clk 0:02:44.7]} 4.
Nc3 {[%clk 0:02:45.4]} 4... Bxf3 {[%clk 0:02:42.3]} 5. gxf3 {[%clk 0:02:46.5]}
5... e5 {[%clk 0:02:09.6]} 6. cxd5 {[%clk 0:02:43.5]} 6... Nxd4 {[%clk
0:02:09.9]} 7. e3 {[%clk 0:02:44.8]} 7... Nf5 {[%clk 0:02:02.8]} 8. Bb5+ {[%clk
0:02:45.6]} 8... Ke7 {[%clk 0:02:00.3]} 9. Bd3 {[%clk 0:02:43.7]} 9... Nd6
{[%clk 0:01:59.6]} 10. e4 {[%clk 0:02:42.6]} 10... f6 {[%clk 0:01:58.1]} 11. f4
{[%clk 0:02:43.7]} 11... exf4 {[%clk 0:01:53]} 12. Bxf4 {[%clk 0:02:44.6]} 12...
Kf7 {[%clk 0:01:52.8]} 13. Rc1 {[%clk 0:02:44.1]} 13... Ne7 {[%clk 0:01:52.8]}
14. O-O {[%clk 0:02:45]} 14... h5 {[%clk 0:01:52]} 15. Kh1 {[%clk 0:02:42.1]}
15... g5 {[%clk 0:01:49.1]} 16. Be3 {[%clk 0:02:43.1]} 16... Ng6 {[%clk
0:01:44.9]} 17. Nb5 {[%clk 0:02:40.2]} 17... a6 {[%clk 0:01:43.2]} 18. Nxc7
{[%clk 0:02:38.6]} 18... Rc8 {[%clk 0:01:28.3]} 19. Ne6 {[%clk 0:02:39.4]} 19...
Qd7 {[%clk 0:01:29.3]} 20. Rxc8 {[%clk 0:02:39.5]} 20... Qxc8 {[%clk 0:01:29.2]}
21. Be2 {[%clk 0:02:40.9]} 21... g4 {[%clk 0:01:22.9]} 22. f3 {[%clk 0:02:42.3]}
22... Be7 {[%clk 0:01:13.9]} 23. Bd4 {[%clk 0:02:36]} 23... Qd7 {[%clk
0:00:56.3]} 24. fxg4 {[%clk 0:02:35.7]} 24... hxg4 {[%clk 0:00:50.3]} 25. Bxg4
{[%clk 0:02:37.6]} 25... Qb5 {[%clk 0:00:48.1]} 26. e5 {[%clk 0:02:28.8]} 26...
Qxd5+ {[%clk 0:00:45.8]} 27. Qf3 {[%clk 0:02:28.5]} 27... Qxf3+ {[%clk
0:00:39.8]} 28. Rxf3 {[%clk 0:02:30.4]} 28... Nb5 {[%clk 0:00:40]} 29. exf6
{[%clk 0:02:24.8]} 29... Nxd4 {[%clk 0:00:36.4]} 30. Nxd4 {[%clk 0:02:23.9]}
30... Bxf6 {[%clk 0:00:37.3]} 31. Rf2 {[%clk 0:02:17.2]} 31... Rd8 {[%clk
0:00:37.2]} 32. Nb3 {[%clk 0:02:12.4]} 32... Rd6 {[%clk 0:00:37.3]} 33. Nc5
{[%clk 0:02:09.8]} 33... Rc6 {[%clk 0:00:31.7]} 34. Nxb7 {[%clk 0:02:07.2]}
34... Nh4 {[%clk 0:00:31.2]} 35. Nd8+ {[%clk 0:02:07.5]} 35... Ke7 {[%clk
0:00:31.4]} 36. Nxc6+ {[%clk 0:02:09.4]} 1-0

[Event "*** Titled Tuesday 3|2 Blitz"]
[Site "Chess.com"]
[Date "2015.03.03"]
[Round "3"]
[White "grandmastergauri"]
[Black "kesarev"]
[Result "1-0"]
[WhiteElo "2295"]
[BlackElo "2231"]
[TimeControl "180+2"]
[EndTime "11:36:00 PST"]
[Termination "grandmastergauri won by resignation"]

1. e4 {[%clk 0:03:00]} 1... g6 {[%clk 0:02:58.8]} 2. Nc3 {[%clk 0:02:56.6]} 2...
Bg7 {[%clk 0:03:00]} 3. g3 {[%clk 0:02:56.9]} 3... c5 {[%clk 0:02:59.5]} 4. Bg2
{[%clk 0:02:58.1]} 4... Nc6 {[%clk 0:02:59.9]} 5. d3 {[%clk 0:02:59.5]} 5... e6
{[%clk 0:03:00.3]} 6. Be3 {[%clk 0:02:59.8]} 6... d6 {[%clk 0:03:01.1]} 7. Qd2
{[%clk 0:03:00.9]} 7... Nd4 {[%clk 0:02:53.9]} 8. Nd1 {[%clk 0:02:59.2]} 8...
Ne7 {[%clk 0:02:44.8]} 9. c3 {[%clk 0:02:57.7]} 9... Ndc6 {[%clk 0:02:45.2]} 10.
Ne2 {[%clk 0:02:52.6]} 10... O-O {[%clk 0:02:44]} 11. Bh6 {[%clk 0:02:53.7]}
11... e5 {[%clk 0:02:39.9]} 12. Bxg7 {[%clk 0:02:42.1]} 12... Kxg7 {[%clk
0:02:40.3]} 13. Ne3 {[%clk 0:02:44]} 13... Be6 {[%clk 0:02:39.5]} 14. f4 {[%clk
0:02:44.9]} 14... f5 {[%clk 0:02:37.9]} 15. O-O {[%clk 0:02:41]} 15... Qd7
{[%clk 0:02:35.9]} 16. d4 {[%clk 0:02:29.7]} 16... exd4 {[%clk 0:01:43.8]} 17.
cxd4 {[%clk 0:02:30]} 17... cxd4 {[%clk 0:01:44.9]} 18. Nxd4 {[%clk 0:02:28.4]}
18... Rad8 {[%clk 0:01:43.1]} 19. Nxe6+ {[%clk 0:02:16.7]} 19... Qxe6 {[%clk
0:01:43.4]} 20. exf5 {[%clk 0:02:18]} 20... Nxf5 {[%clk 0:01:40.6]} 21. Nxf5+
{[%clk 0:02:14.5]} 21... Qxf5 {[%clk 0:01:39.5]} 22. Rfe1 {[%clk 0:02:11]} 22...
Qf6 {[%clk 0:01:37.2]} 23. Rad1 {[%clk 0:02:06.3]} 23... Rf7 {[%clk 0:01:35.3]}
24. a3 {[%clk 0:02:04]} 24... Re7 {[%clk 0:01:34.2]} 25. b4 {[%clk 0:02:04.5]}
25... a6 {[%clk 0:01:29.6]} 26. Rxe7+ {[%clk 0:02:00.2]} 26... Qxe7 {[%clk
0:01:29.2]} 27. Bxc6 {[%clk 0:01:49.9]} 27... bxc6 {[%clk 0:01:29.5]} 28. Qc3+
{[%clk 0:01:47.8]} 28... Kf7 {[%clk 0:01:03.5]} 29. Re1 {[%clk 0:01:46.8]} 29...
Qd7 {[%clk 0:01:02.3]} 30. Qc4+ {[%clk 0:01:44]} 30... d5 {[%clk 0:01:03]} 31.
Qxa6 {[%clk 0:01:45.1]} 31... Re8 {[%clk 0:01:02.5]} 32. Rxe8 {[%clk 0:01:34.3]}
32... Qxe8 {[%clk 0:01:03]} 33. Kf2 {[%clk 0:01:34.7]} 33... Kf6 {[%clk
0:01:01]} 34. Qe2 {[%clk 0:01:34]} 34... Qb8 {[%clk 0:00:59.6]} 35. Qe5+ {[%clk
0:01:31.7]} 35... Qxe5 {[%clk 0:00:59.3]} 36. fxe5+ {[%clk 0:01:33.6]} 36...
Kxe5 {[%clk 0:01:01]} 37. Ke3 {[%clk 0:01:35.2]} 37... g5 {[%clk 0:00:51.7]} 38.
g4 {[%clk 0:01:34.3]} 38... h6 {[%clk 0:00:52.2]} 39. a4 {[%clk 0:01:34.5]}
39... d4+ {[%clk 0:00:49.4]} 40. Kd3 {[%clk 0:01:35.1]} 40... Kd5 {[%clk
0:00:51.1]} 41. a5 {[%clk 0:01:36.2]} 41... c5 {[%clk 0:00:52]} 42. bxc5 {[%clk
0:01:37.1]} 1-0

[Event "*** Titled Tuesday 3|2 Blitz"]
[Site "Chess.com"]
[Date "2015.03.03"]
[Round "3"]
[White "kharposh"]
[Black "Aragon"]
[Result "1-0"]
[WhiteElo "2060"]
[BlackElo "1960"]
[TimeControl "180+2"]
[EndTime "11:36:05 PST"]
[Termination "kharposh won by checkmate"]

1. d4 {[%clk 0:03:00]} 1... d5 {[%clk 0:02:58]} 2. c4 {[%clk 0:03:00.7]} 2... e6
{[%clk 0:02:58.5]} 3. Nc3 {[%clk 0:03:01.3]} 3... c6 {[%clk 0:02:59.4]} 4. cxd5
{[%clk 0:02:59.9]} 4... cxd5 {[%clk 0:02:53.4]} 5. Bf4 {[%clk 0:02:59.5]} 5...
Bd6 {[%clk 0:02:50.3]} 6. Bg3 {[%clk 0:02:59.1]} 6... Ne7 {[%clk 0:02:46.6]} 7.
e3 {[%clk 0:03:00.2]} 7... O-O {[%clk 0:02:46.3]} 8. Nf3 {[%clk 0:03:01.2]} 8...
Nbc6 {[%clk 0:02:31.5]} 9. Bd3 {[%clk 0:03:01.3]} 9... h6 {[%clk 0:02:30.4]} 10.
Rc1 {[%clk 0:03:01.4]} 10... Nf5 {[%clk 0:02:27.5]} 11. Bxf5 {[%clk 0:03:00.8]}
11... exf5 {[%clk 0:02:28.7]} 12. Bxd6 {[%clk 0:02:58.6]} 12... Qxd6 {[%clk
0:02:29.1]} 13. Qb3 {[%clk 0:02:57.8]} 13... Be6 {[%clk 0:02:19.5]} 14. O-O
{[%clk 0:02:55.4]} 14... Na5 {[%clk 0:02:10.3]} 15. Qa4 {[%clk 0:02:51.2]} 15...
b6 {[%clk 0:02:07.5]} 16. Ne5 {[%clk 0:02:48.8]} 16... Rfd8 {[%clk 0:01:59.9]}
17. Nb5 {[%clk 0:02:45]} 17... Qe7 {[%clk 0:01:55.6]} 18. Rc7 {[%clk 0:02:28.7]}
18... Bd7 {[%clk 0:01:55.9]} 19. b4 {[%clk 0:02:19.5]} 19... Bxb5 {[%clk
0:01:53.7]} 20. Rxe7 {[%clk 0:02:19]} 20... Bxa4 {[%clk 0:01:50.6]} 21. bxa5
{[%clk 0:02:20.1]} 21... bxa5 {[%clk 0:01:47.6]} 22. Nxf7 {[%clk 0:02:11.7]}
22... Re8 {[%clk 0:01:44]} 23. Rc7 {[%clk 0:02:03.5]} 23... f4 {[%clk 0:01:34]}
24. exf4 {[%clk 0:01:55.2]} 24... Re2 {[%clk 0:01:33.8]} 25. f5 {[%clk
0:01:49.5]} 25... Rxa2 {[%clk 0:01:24.5]} 26. f6 {[%clk 0:01:50.3]} 26... Be8
{[%clk 0:01:22.7]} 27. Nd6 {[%clk 0:01:33.8]} 27... gxf6 {[%clk 0:01:17]} 28.
Re1 {[%clk 0:01:34.5]} 28... Bg6 {[%clk 0:00:55.8]} 29. g4 {[%clk 0:01:31.4]}
29... Rd8 {[%clk 0:00:44.2]} 30. Ree7 {[%clk 0:01:30.5]} 30... Be4 {[%clk
0:00:29.8]} 31. Rg7+ {[%clk 0:01:29.6]} 31... Kf8 {[%clk 0:00:27.1]} 32. Rcf7#
{[%clk 0:01:29.4]} 1-0

[Event "*** Titled Tuesday 3|2 Blitz"]
[Site "Chess.com"]
[Date "2015.03.03"]
[Round "3"]
[White "AkshatChandra"]
[Black "EltajSafarli"]
[Result "0-1"]
[WhiteElo "2505"]
[BlackElo "2667"]
[TimeControl "180+2"]
[EndTime "11:36:20 PST"]
[Termination "EltajSafarli won on time"]

1. e4 {[%clk 0:03:00]} 1... c5 {[%clk 0:02:56.8]} 2. Nf3 {[%clk 0:03:00.4]} 2...
d6 {[%clk 0:02:58.5]} 3. Bb5+ {[%clk 0:02:59.4]} 3... Nc6 {[%clk 0:02:55]} 4.
O-O {[%clk 0:03:00]} 4... Bd7 {[%clk 0:02:56.4]} 5. Re1 {[%clk 0:03:00.3]} 5...
Nf6 {[%clk 0:02:57.8]} 6. c3 {[%clk 0:03:00.7]} 6... a6 {[%clk 0:02:59.4]} 7.
Bf1 {[%clk 0:03:02.2]} 7... Bg4 {[%clk 0:02:57]} 8. h3 {[%clk 0:03:03.5]} 8...
Bxf3 {[%clk 0:02:58.1]} 9. Qxf3 {[%clk 0:03:05.4]} 9... g6 {[%clk 0:02:58.5]}
10. d3 {[%clk 0:03:04]} 10... Bg7 {[%clk 0:02:59.7]} 11. Be3 {[%clk 0:03:05.6]}
11... O-O {[%clk 0:03:00.5]} 12. Nd2 {[%clk 0:03:06.1]} 12... Nd7 {[%clk
0:03:01.1]} 13. Qd1 {[%clk 0:03:07.4]} 13... b5 {[%clk 0:03:01.8]} 14. Nf3
{[%clk 0:03:08.9]} 14... b4 {[%clk 0:03:01.3]} 15. Qa4 {[%clk 0:03:03.9]} 15...
Rc8 {[%clk 0:02:53.4]} 16. d4 {[%clk 0:02:59.6]} 16... Nb6 {[%clk 0:02:50.7]}
17. Qd1 {[%clk 0:02:45]} 17... bxc3 {[%clk 0:02:50.1]} 18. bxc3 {[%clk
0:02:45.9]} 18... cxd4 {[%clk 0:02:48.6]} 19. cxd4 {[%clk 0:02:38.4]} 19... d5
{[%clk 0:02:42.8]} 20. Bxa6 {[%clk 0:02:26.9]} 20... Rc7 {[%clk 0:02:41]} 21. e5
{[%clk 0:02:23.8]} 21... Qa8 {[%clk 0:02:38.9]} 22. Bb5 {[%clk 0:02:20]} 22...
Nc4 {[%clk 0:02:40.1]} 23. Bg5 {[%clk 0:02:11.8]} 23... Na3 {[%clk 0:02:33.4]}
24. Bxc6 {[%clk 0:02:01.1]} 24... Qxc6 {[%clk 0:02:35.3]} 25. Rc1 {[%clk
0:02:02.1]} 25... Nc4 {[%clk 0:02:30.6]} 26. Nd2 {[%clk 0:01:53.6]} 26... e6
{[%clk 0:02:31.7]} 27. Qe2 {[%clk 0:01:20]} 27... Rfc8 {[%clk 0:02:32.1]} 28.
Nf3 {[%clk 0:01:11.3]} 28... Qa4 {[%clk 0:02:25.4]} 29. Nh2 {[%clk 0:01:07.4]}
29... h6 {[%clk 0:02:22.3]} 30. Bf4 {[%clk 0:01:06.7]} 30... Na3 {[%clk
0:02:00.9]} 31. Rxc7 {[%clk 0:01:05.9]} 31... Rxc7 {[%clk 0:02:02.8]} 32. Ng4
{[%clk 0:00:53.2]} 32... g5 {[%clk 0:02:00.5]} 33. Be3 {[%clk 0:00:50]} 33...
Nc2 {[%clk 0:01:56.8]} 34. Rd1 {[%clk 0:00:34.5]} 34... Rc4 {[%clk 0:01:55.4]}
35. Nf6+ {[%clk 0:00:04.4]} 35... Kf8 {[%clk 0:01:50.8]} 36. Nd7+ {[%clk
0:00:04.4]} 36... Qxd7 {[%clk 0:01:50.3]} 0-1

[Event "*** Titled Tuesday 3|2 Blitz"]
[Site "Chess.com"]
[Date "2015.03.03"]
[Round "3"]
[White "ChessPsych0"]
[Black "BjarkeSahl"]
[Result "0-1"]
[WhiteElo "2014"]
[BlackElo "2071"]
[TimeControl "180+2"]
[EndTime "11:36:21 PST"]
[Termination "BjarkeSahl won on time"]

1. d4 {[%clk 0:02:51.5]} 1... f5 {[%clk 0:02:56.6]} 2. g3 {[%clk 0:02:51.7]}
2... Nf6 {[%clk 0:02:56.9]} 3. Bg2 {[%clk 0:02:53.2]} 3... g6 {[%clk 0:02:58.5]}
4. Nf3 {[%clk 0:02:54]} 4... Bg7 {[%clk 0:03:00]} 5. O-O {[%clk 0:02:55.6]} 5...
O-O {[%clk 0:03:01.6]} 6. c4 {[%clk 0:02:57]} 6... d6 {[%clk 0:03:03]} 7. b3
{[%clk 0:02:57.5]} 7... Qe8 {[%clk 0:03:03.1]} 8. Bb2 {[%clk 0:02:58.8]} 8... h6
{[%clk 0:03:04]} 9. Nbd2 {[%clk 0:02:59.9]} 9... g5 {[%clk 0:03:04.5]} 10. Qc2
{[%clk 0:02:59.5]} 10... Qg6 {[%clk 0:03:01.7]} 11. Rfe1 {[%clk 0:02:56.9]}
11... Nc6 {[%clk 0:02:55.2]} 12. d5 {[%clk 0:02:49]} 12... Nb4 {[%clk
0:02:54.7]} 13. Qb1 {[%clk 0:02:48.5]} 13... a5 {[%clk 0:02:54.2]} 14. a3 {[%clk
0:02:49.3]} 14... Na6 {[%clk 0:02:54.7]} 15. Nd4 {[%clk 0:02:38.6]} 15... Nc5
{[%clk 0:02:52.4]} 16. Qc2 {[%clk 0:02:34.1]} 16... Nce4 {[%clk 0:02:44.6]} 17.
Rad1 {[%clk 0:02:10.1]} 17... Nxf2 {[%clk 0:02:11.6]} 18. Kxf2 {[%clk
0:01:57.6]} 18... Ng4+ {[%clk 0:02:13]} 19. Kf3 {[%clk 0:01:18.6]} 19... Nxh2+
{[%clk 0:02:09.3]} 20. Kf2 {[%clk 0:01:15.1]} 20... Ng4+ {[%clk 0:02:08.8]} 21.
Kf3 {[%clk 0:01:08.3]} 21... Bd7 {[%clk 0:01:23.2]} 22. e3 {[%clk 0:00:41.1]}
22... Rae8 {[%clk 0:01:21.9]} 23. Ke2 {[%clk 0:00:38.7]} 23... c5 {[%clk
0:01:12.6]} 24. dxc6 {[%clk 0:00:37.5]} 24... bxc6 {[%clk 0:01:14]} 25. Nxc6
{[%clk 0:00:33.9]} 25... Nxe3 {[%clk 0:01:07.1]} 26. Qc1 {[%clk 0:00:10.5]}
26... Nxg2 {[%clk 0:01:07]} 27. Rg1 {[%clk 0:00:10.8]} 27... Bxc6 {[%clk
0:01:07.7]} 28. Bxg7 {[%clk 0:00:09.3]} 28... Qxg7 {[%clk 0:01:07.7]} 29. Nf3
{[%clk 0:00:10.5]} 29... g4 {[%clk 0:01:00.4]} 0-1

[Event "*** Titled Tuesday 3|2 Blitz"]
[Site "Chess.com"]
[Date "2015.03.03"]
[Round "3"]
[White "FrankieJay"]
[Black "Spas_Kozhuharov"]
[Result "0-1"]
[WhiteElo "2203"]
[BlackElo "2407"]
[TimeControl "180+2"]
[EndTime "11:36:34 PST"]
[Termination "Spas_Kozhuharov won by resignation"]

1. e4 {[%clk 0:03:00]} 1... c6 {[%clk 0:02:58.5]} 2. d4 {[%clk 0:03:00.9]} 2...
d5 {[%clk 0:03:00.4]} 3. e5 {[%clk 0:03:02.6]} 3... c5 {[%clk 0:03:01.4]} 4. Nf3
{[%clk 0:02:59.9]} 4... Bg4 {[%clk 0:02:56.3]} 5. dxc5 {[%clk 0:02:44.9]} 5...
Nc6 {[%clk 0:02:52.6]} 6. Bb5 {[%clk 0:02:34.3]} 6... e6 {[%clk 0:02:48.2]} 7.
h3 {[%clk 0:02:31.7]} 7... Bxf3 {[%clk 0:02:47.1]} 8. Qxf3 {[%clk 0:02:32.5]}
8... Bxc5 {[%clk 0:02:48.1]} 9. O-O {[%clk 0:02:32.2]} 9... Ne7 {[%clk
0:02:47.6]} 10. c4 {[%clk 0:01:57.4]} 10... dxc4 {[%clk 0:02:24.5]} 11. Qg4
{[%clk 0:01:42.7]} 11... O-O {[%clk 0:02:05.8]} 12. Qxc4 {[%clk 0:01:33.3]}
12... Qd4 {[%clk 0:02:03.1]} 13. Qxd4 {[%clk 0:01:09.6]} 13... Bxd4 {[%clk
0:02:03.2]} 14. Nc3 {[%clk 0:01:06.1]} 14... Nxe5 {[%clk 0:01:59.7]} 15. Bf4
{[%clk 0:00:58.2]} 15... N7g6 {[%clk 0:01:57.5]} 16. Bg3 {[%clk 0:00:58.9]}
16... Rfd8 {[%clk 0:01:54.9]} 17. Rab1 {[%clk 0:00:54.1]} 17... Rac8 {[%clk
0:01:51.7]} 18. Rfc1 {[%clk 0:00:43.7]} 18... h5 {[%clk 0:01:47.2]} 19. Be2
{[%clk 0:00:32.6]} 19... h4 {[%clk 0:01:47]} 20. Bh2 {[%clk 0:00:34]} 20... Bxc3
{[%clk 0:01:42.3]} 21. bxc3 {[%clk 0:00:35.1]} 21... Rd2 {[%clk 0:01:42]} 22.
Kf1 {[%clk 0:00:36]} 22... b6 {[%clk 0:01:41.5]} 23. a4 {[%clk 0:00:31.3]} 23...
Nd3 {[%clk 0:01:30.7]} 24. Rd1 {[%clk 0:00:25]} 24... Rxd1+ {[%clk 0:01:31.7]}
25. Rxd1 {[%clk 0:00:26.9]} 25... Ndf4 {[%clk 0:01:33.1]} 26. Bb5 {[%clk
0:00:07.3]} 26... Rxc3 {[%clk 0:01:30.6]} 27. Bxf4 {[%clk 0:00:03.5]} 27... Nxf4
{[%clk 0:01:30.9]} 28. Kg1 {[%clk 0:00:05.4]} 28... Rc7 {[%clk 0:01:16.3]} 29.
Rd4 {[%clk 0:00:06.3]} 29... g5 {[%clk 0:01:16.6]} 30. Kh2 {[%clk 0:00:06.4]}
30... Kg7 {[%clk 0:01:14.6]} 31. g3 {[%clk 0:00:07.8]} 31... hxg3+ {[%clk
0:01:15.3]} 32. fxg3 {[%clk 0:00:09.7]} 32... Rc2+ {[%clk 0:01:13.5]} 33. Kh1
{[%clk 0:00:10.2]} 33... Ne2 {[%clk 0:01:13.1]} 34. Bxe2 {[%clk 0:00:08.1]}
34... Rxe2 {[%clk 0:01:15]} 35. Rd7 {[%clk 0:00:10]} 35... a5 {[%clk 0:01:11.3]}
36. Rb7 {[%clk 0:00:11]} 36... Rb2 {[%clk 0:01:10.9]} 0-1

[Event "*** Titled Tuesday 3|2 Blitz"]
[Site "Chess.com"]
[Date "2015.03.03"]
[Round "3"]
[White "Novak_Pezelj"]
[Black "darsen_sanzhaev"]
[Result "1-0"]
[WhiteElo "2386"]
[BlackElo "2157"]
[TimeControl "180+2"]
[EndTime "11:36:52 PST"]
[Termination "Novak_Pezelj won by resignation"]

1. e4 {[%clk 0:02:59.8]} 1... c5 {[%clk 0:02:57.1]} 2. Nc3 {[%clk 0:03:00.3]}
2... e6 {[%clk 0:02:57.3]} 3. Bc4 {[%clk 0:03:00.3]} 3... a6 {[%clk 0:02:58.1]}
4. a4 {[%clk 0:03:00.8]} 4... Qc7 {[%clk 0:02:56]} 5. d3 {[%clk 0:03:01.5]} 5...
Nf6 {[%clk 0:02:55.7]} 6. Nge2 {[%clk 0:03:02]} 6... Be7 {[%clk 0:02:52.8]} 7.
Bf4 {[%clk 0:03:02.2]} 7... d6 {[%clk 0:02:52.6]} 8. h3 {[%clk 0:03:01.2]} 8...
Nc6 {[%clk 0:02:45.8]} 9. O-O {[%clk 0:03:00.5]} 9... h6 {[%clk 0:02:37.5]} 10.
Bh2 {[%clk 0:02:59.3]} 10... Nd4 {[%clk 0:02:17.3]} 11. Nxd4 {[%clk 0:02:57.2]}
11... cxd4 {[%clk 0:02:19.2]} 12. Ne2 {[%clk 0:02:58.1]} 12... e5 {[%clk
0:02:10]} 13. f4 {[%clk 0:02:40.2]} 13... Rb8 {[%clk 0:02:10.5]} 14. Kh1 {[%clk
0:02:32.4]} 14... b5 {[%clk 0:02:07.4]} 15. axb5 {[%clk 0:02:32.5]} 15... axb5
{[%clk 0:02:09.3]} 16. Bb3 {[%clk 0:02:32.9]} 16... Qc5 {[%clk 0:01:42.5]} 17.
fxe5 {[%clk 0:02:31.1]} 17... dxe5 {[%clk 0:01:43.5]} 18. c3 {[%clk 0:02:26.5]}
18... dxc3 {[%clk 0:01:09.7]} 19. d4 {[%clk 0:02:27.5]} 19... Qb6 {[%clk
0:00:54]} 20. dxe5 {[%clk 0:02:09]} 20... cxb2 {[%clk 0:00:43.8]} 21. Rb1 {[%clk
0:02:09.5]} 21... Nxe4 {[%clk 0:00:43.8]} 22. Bxf7+ {[%clk 0:02:08.8]} 22... Kf8
{[%clk 0:00:45.4]} 23. Bd5+ {[%clk 0:01:39.6]} 23... Nf2+ {[%clk 0:00:45.3]} 24.
Kg1 {[%clk 0:01:32.9]} 24... Bf5 {[%clk 0:00:42.5]} 25. Rxf2 {[%clk 0:01:24.1]}
25... Bc5 {[%clk 0:00:43.7]} 26. Bg3 {[%clk 0:01:20.3]} 26... Rd8 {[%clk
0:00:20.6]} 27. Rxb2 {[%clk 0:01:21.2]} 27... Ke7 {[%clk 0:00:11.9]} 28. Rd2
{[%clk 0:01:14.1]} 28... Be3 {[%clk 0:00:09.2]} 29. Nd4 {[%clk 0:00:36.9]} 29...
Bxf2+ {[%clk 0:00:03.8]} 30. Bxf2 {[%clk 0:00:37.2]} 30... Rhf8 {[%clk
0:00:05.2]} 31. Nxf5+ {[%clk 0:00:37.5]} 31... Rxf5 {[%clk 0:00:06.8]} 32. Bxb6
{[%clk 0:00:38.6]} 1-0